fUSD/lending_fUSD_20240518
["ID","MTS","AMOUNT","RATE_DAILY","PERIOD"]
[327350796,1716006642608,-151.0,0.000449,2]
[327350797,1716006642618,-151.0,0.000449,14]
[327350798,1716006642627,-151.0,0.000449,14]
[327350799,1716006642637,-151.0,0.000449,14]
[327350800,1716006642646,-151.0,0.000449,14]
[327350801,1716006642655,-151.0,0.000449,14]
[327350802,1716006642664,-151.0,0.000449,14]
[327350803,1716006642673,-151.0,0.000449,14]
[327350804,1716006642682,-151.0,0.000449,14]
[327350805,1716006642692,-151.0,0.000449,14]
[327350806,1716006642701,-151.0,0.000449,14]
[327350807,1716006642710,-151.0,0.000449,14]
[327350808,1716006642720,-151.0,0.000449,14]
[327350809,1716006642729,-151.45178681,0.000449,66]
[327350810,1716006642738,-151.0,0.000449,14]
[327350811,1716006642748,-151.0,0.000449,14]
[327350812,1716006642757,-151.0,0.000449,14]
[327350813,1716006642766,-168.037798,0.000449,14]
[327350814,1716006642775,-151.0,0.000449,14]
[327350815,1716006642784,-151.0,0.000449,14]
[327350816,1716006642795,-151.0,0.000449,14]
[327350817,1716006642804,-151.0,0.000449,14]
[327350818,1716006642813,-151.0,0.000449,14]
[327350819,1716006642822,-151.0,0.000449,14]
[327350820,1716006642832,-153.607316,0.000449,14]
[327350821,1716006642847,-153.607316,0.000449,14]
[327350822,1716006642856,-151.0,0.000449,14]
[327350823,1716006642868,-1375.73110909,0.000449,2]
[327350824,1716006642880,-1975.86428278,0.000449,7]
[327350825,1716006642889,-1975.86428278,0.000449,7]
[327350826,1716006642899,-1975.86428278,0.000449,7]
[327350827,1716006642909,-1975.86428278,0.000449,7]
[327350828,1716006642920,-1975.86428278,0.000449,7]
[327350829,1716006642930,-1975.86428278,0.000449,7]
[327350830,1716006642939,-1975.86428278,0.000449,7]
[327350831,1716006642948,-1975.86428278,0.000449,7]
[327350832,1716006642958,-1975.86428278,0.000449,7]
[327350833,1716006642969,-1975.86428278,0.000449,7]
[327350834,1716006642978,-1975.86428278,0.000449,7]
[327350835,1716006642988,-1975.86428278,0.000449,7]
[327350836,1716006642998,-1975.86428278,0.000449,7]
[327350837,1716006643007,-1975.86428278,0.000449,7]
[327350838,1716006643017,-1975.86428278,0.000449,7]
[327350839,1716006643028,-1975.86428278,0.000449,7]
[327350840,1716006643037,-1975.86428278,0.000449,7]
[327350841,1716006643045,-1975.86428278,0.000449,7]
[327350842,1716006643055,-1975.86428278,0.000449,7]
[327350844,1716006643065,-1976.36,0.000449,7]
[327350845,1716006643074,-7903.53213112,0.000449,7]
[327350846,1716006643083,-7903.53213112,0.000449,7]
[327350847,1716006643092,-7903.53213112,0.000449,7]
[327350848,1716006643102,-7903.53213112,0.000449,7]
[327350849,1716006643112,-7903.53213112,0.000449,7]
[327350850,1716006643122,-7903.53213112,0.000449,7]
[327350851,1716006643131,-7903.53213112,0.000449,7]
[327350852,1716006643141,-7903.53213112,0.000449,7]
[327350853,1716006643150,-7903.53213112,0.000449,7]
[327350854,1716006643160,-151.0,0.000449,14]
[327350855,1716006643169,-7903.53213112,0.000449,7]
[327350856,1716006643180,-7903.53213112,0.000449,7]
[327350857,1716006643189,-7903.53213112,0.000449,7]
[327350858,1716006643199,-7903.53213112,0.000449,7]
[327350859,1716006643208,-7903.53213112,0.000449,7]
[327350860,1716006643217,-7903.53213112,0.000449,7]
[327350861,1716006643227,-7903.53213112,0.000449,7]
[327350862,1716006643236,-7903.53213112,0.000449,7]
[327350863,1716006643245,-7903.53213112,0.000449,7]
[327350864,1716006643256,-7903.53213112,0.000449,7]
[327350865,1716006643265,-7904.03,0.000449,7]
[327350866,1716006643275,-582.18075575,0.000449,7]
[327350867,1716006643285,-582.18075575,0.000449,7]
[327350868,1716006643294,-582.18075575,0.000449,7]
[327350869,1716006643303,-582.18075575,0.000449,7]
[327350870,1716006643313,-582.18075575,0.000449,7]
[327350871,1716006643323,-582.18075575,0.000449,7]
[327350872,1716006643332,-582.18075575,0.000449,7]
[327350873,1716006643342,-582.18075575,0.000449,7]
[327350874,1716006643351,-582.18075575,0.000449,7]
[327350875,1716006643360,-582.18075575,0.000449,7]
[327350876,1716006643370,-582.18075575,0.000449,7]
[327350877,1716006643379,-582.18075575,0.000449,7]
[327350878,1716006643389,-582.18075575,0.000449,7]
[327350879,1716006643399,-582.18075575,0.000449,7]
[327350880,1716006643408,-582.18075575,0.000449,7]
[327350881,1716006643417,-582.18075575,0.000449,7]
[327350882,1716006643427,-582.18075575,0.000449,7]
[327350883,1716006643437,-582.18075575,0.000449,7]
[327350884,1716006643447,-7489.01767515,0.000449,2]
[327350885,1716006643456,-582.18075575,0.000449,7]
[327350886,1716006643466,-582.68,0.000449,7]
[327350887,1716006643475,-2328.79802299,0.000449,7]
[327350888,1716006643485,-190.11760393,0.000449,2]
[327350889,1716006643494,-2328.79802299,0.000449,7]
[327350890,1716006643505,-2328.79802299,0.000449,7]
[327350891,1716006643515,-2328.79802299,0.000449,7]
[327350892,1716006643523,-2328.79802299,0.000449,7]
[327350893,1716006643533,-2328.79802299,0.000449,7]
[327350894,1716006643543,-2328.79802299,0.000449,7]
[327350895,1716006643553,-2328.79802299,0.000449,7]
[327350896,1716006643562,-2328.79802299,0.000449,7]
[327350897,1716006643570,-2328.79802299,0.000449,7]
[327350898,1716006643580,-2328.79802299,0.000449,7]
[327350899,1716006643589,-2328.79802299,0.000449,7]
[327350900,1716006643598,-2328.79802299,0.000449,7]
[327350901,1716006643608,-2328.79802299,0.000449,7]
[327350902,1716006643617,-2328.79802299,0.000449,7]
[327350903,1716006643626,-2328.79802299,0.000449,7]
[327350904,1716006643635,-2328.79802299,0.000449,7]
[327350905,1716006643645,-2328.79802299,0.000449,7]
[327350906,1716006643654,-2328.79802299,0.000449,7]
[327350907,1716006643663,-2329.29,0.000449,7]
[327350909,1716006643673,-174.40521767,0.000449,7]
[327350911,1716006643681,-174.40521767,0.000449,7]
[327350912,1716006643691,-174.40521767,0.000449,7]
[327350914,1716006643700,-174.40521767,0.000449,7]
[327350916,1716006643709,-174.40521767,0.000449,7]
[327350917,1716006643718,-174.40521767,0.000449,7]
[327350918,1716006643727,-174.40521767,0.000449,7]
[327350919,1716006643736,-174.40521767,0.000449,7]
[327350920,1716006643745,-174.40521767,0.000449,7]
[327350921,1716006643851,-174.40521767,0.000449,7]
[327350922,1716006643860,-174.40521767,0.000449,7]
[327350923,1716006643870,-174.40521767,0.000449,7]
[327350924,1716006643879,-174.40521767,0.000449,7]
[327350925,1716006643888,-174.40521767,0.000449,7]
[327350926,1716006643897,-174.40521767,0.000449,7]
[327350927,1716006643907,-174.40521767,0.000449,7]
[327350928,1716006643918,-174.40521767,0.000449,7]
[327350929,1716006643927,-174.40521767,0.000449,7]
[327350930,1716006643935,-174.40521767,0.000449,7]
[327350931,1716006643945,-174.9,0.000449,7]
[327350932,1716006643954,-697.69587067,0.000449,7]
[327350933,1716006643963,-697.69587067,0.000449,7]
[327350934,1716006643973,-697.69587067,0.000449,7]
[327350935,1716006643981,-697.69587067,0.000449,7]
[327350936,1716006643990,-697.69587067,0.000449,7]
[327350937,1716006643999,-697.69587067,0.000449,7]
[327350938,1716006644008,-697.69587067,0.000449,7]
[327350939,1716006644018,-697.69587067,0.000449,7]
[327350940,1716006644027,-697.69587067,0.000449,7]
[327350941,1716006644036,-697.69587067,0.000449,7]
[327350942,1716006644046,-697.69587067,0.000449,7]
[327350943,1716006644055,-697.69587067,0.000449,7]
[327350944,1716006644064,-522.2650496,0.000449,2]
[327350945,1716006644073,-697.69587067,0.000449,7]
[327350946,1716006644082,-697.69587067,0.000449,7]
[327350947,1716006644091,-697.69587067,0.000449,7]
[327350948,1716006644100,-697.69587067,0.000449,7]
[327350949,1716006644109,-697.69587067,0.000449,7]
[327350950,1716006644118,-697.69587067,0.000449,7]
[327350951,1716006644127,-697.69587067,0.000449,7]
[327350952,1716006644136,-698.19,0.000449,7]
[327350953,1716006644145,-153.586774,0.000449,14]
[327350954,1716006644155,-617.16273582,0.000449,7]
[327350955,1716006644164,-617.16273582,0.000449,7]
[327350956,1716006644172,-617.16273582,0.000449,7]
[327350957,1716006644181,-617.16273582,0.000449,7]
[327350958,1716006644190,-617.16273582,0.000449,7]
[327350959,1716006644199,-617.16273582,0.000449,7]
[327350960,1716006644208,-617.16273582,0.000449,7]
[327350961,1716006644216,-617.16273582,0.000449,7]
[327350962,1716006644225,-617.16273582,0.000449,7]
[327350963,1716006644234,-617.16273582,0.000449,7]
[327350964,1716006644243,-617.16273582,0.000449,7]
[327350965,1716006644254,-617.16273582,0.000449,7]
[327350966,1716006644263,-617.16273582,0.000449,7]
[327350967,1716006644273,-617.16273582,0.000449,7]
[327350968,1716006644282,-617.16273582,0.000449,7]
[327350969,1716006644291,-617.16273582,0.000449,7]
[327350970,1716006644300,-617.16273582,0.000449,7]
[327350971,1716006644309,-617.16273582,0.000449,7]
[327350972,1716006644318,-617.16273582,0.000449,7]
[327350973,1716006644329,-514.58667572,0.000449,2]
[327350974,1716006644339,-617.66,0.000449,7]
[327350975,1716006644349,-2468.72594327,0.000449,7]
[327350976,1716006644358,-2468.72594327,0.000449,7]
[327350977,1716006644367,-2468.72594327,0.000449,7]
[327350978,1716006644376,-2468.72594327,0.000449,7]
[327350979,1716006644386,-2468.72594327,0.000449,7]
[327350980,1716006644395,-2468.72594327,0.000449,7]
[327350981,1716006644404,-2468.72594327,0.000449,7]
[327350982,1716006644414,-2468.72594327,0.000449,7]
[327350983,1716006644423,-2468.72594327,0.000449,7]
[327350984,1716006644433,-2468.72594327,0.000449,7]
[327350985,1716006644442,-2468.72594327,0.000449,7]
[327350986,1716006644451,-2468.72594327,0.000449,7]
[327350987,1716006644460,-2468.72594327,0.000449,7]
[327350988,1716006644470,-2468.72594327,0.000449,7]
[327350989,1716006644479,-2468.72594327,0.000449,7]
[327350990,1716006644488,-2468.72594327,0.000449,7]
[327350991,1716006644499,-150.0,0.00044926,2]
[327350992,1716006644509,-314.051813,0.00044948,56]
[327350993,1716006644518,-6093.86631273,0.00044949,4]
[327350994,1716006644527,-150.0,0.00044951,2]
[327350995,1716006644536,-150.0,0.00044955,2]
[327350996,1716006644546,-500.0,0.00044964,30]
[327350997,1716006644555,-200.0,0.00044964,120]
[327350998,1716006644565,-150.0,0.00044977,2]
[327350999,1716006644574,-150.0,0.00044984,2]
[327351000,1716006644584,-5000.0,0.00044986,4]
[327351001,1716006644593,-334657.42644044,0.00044986,120]
[327351002,1716006644715,-221475.57826905,0.00044986,120]
[327351003,1716006644833,-200.0,0.00030111,2]
[327351004,1716006644845,-661.68306313,0.00040581,14]
[327351005,1716006644862,-15.37711787,0.00040581,14]
[327351006,1716006644871,-151.0,0.00040581,14]
[327351007,1716006644882,-2468.72594327,0.000449,7]
[327351008,1716006644891,-2364.89693886,0.000449,7]
[327351009,1716006644902,-103.82900441,0.000449,7]
[327351010,1716006644912,-677.060181,0.000449,14]
[327351011,1716006644922,-2468.72594327,0.000449,7]
[327351012,1716006644931,-266800.47928867,0.00044986,120]
[327351013,1716006644942,-3503.27445966,0.00044986,120]
[327351014,1716006644953,-814.42149292,0.00044986,120]
[327351015,1716006644963,-950.36,0.00044986,120]
[327351016,1716006645149,-5570.09237704,0.00034999,4]
[327351017,1716006645158,-677.060181,0.00040581,14]
[327351018,1716006645168,-150.0,0.00042673,2]
[327351019,1716006645177,-150.0,0.00042779,2]
[327351020,1716006645186,-150.0,0.00043182,2]
[327351021,1716006645195,-150.0,0.00043316,2]
[327351022,1716006645205,-150.0,0.00043425,2]
[327351023,1716006645214,-150.0,0.00043457,2]
[327351024,1716006645223,-150.0,0.00043881,2]
[327351025,1716006645232,-150.0,0.00044129,2]
[327351026,1716006645242,-150.0,0.00044152,2]
[327351027,1716006645251,-150.0,0.00044189,2]
[327351028,1716006645260,-150.0,0.00044409,2]
[327351029,1716006645269,-150.0,0.0004444,2]
[327351030,1716006645277,-150.0,0.00044546,2]
[327351031,1716006645286,-3167.29983824,0.0004485,2]
[327351032,1716006645295,-2469.22,0.000449,7]
[327351033,1716006645304,-35353.83233766,0.00044986,120]
[327351034,1716006645326,-198804.81599998,0.00044986,120]
[327351035,1716006645337,-470.23000002,0.00044986,120]
[327351036,1716006645348,-6399.8147,0.00044986,120]
[327351037,1716006645359,-437.64556488,0.00044986,120]
[327351038,1716006646168,-3639.3868,0.00022,2]
[327351039,1716006646360,-263.63284643,0.00022,2]
[327351048,1716006653591,155.42330207,0.00010416,2]
[327351049,1716006653681,409.57557879,0.00010416,2]
[327351050,1716006687656,411.08824489,0.00010416,2]
[327351051,1716006835969,3938.36833511,9e-05,2]
[327351052,1716006835998,4250.00907728,9e-05,2]
[327351053,1716006995011,1048.51,0.000235,120]
[327351077,1716007832259,-324.80287789,0.00012825,2]
[327351078,1716007832268,-155.0,0.00012825,2]
[327351079,1716007832278,-877.82597744,0.00012826,2]
[327351080,1716007832292,-358.22005688,0.00012826,2]
[327351081,1716007832306,-1092.22550723,0.00012826,2]
[327351082,1716007832315,-1725.57214939,0.00012826,2]
[327351083,1716007832364,-3016.7311717,0.00012826,2]
[327351084,1716007832376,-1380.55997718,0.00012827,2]
[327351085,1716007832386,-1244.98776031,0.00012827,2]
[327351086,1716007832395,-546.75884339,0.00012828,2]
[327351087,1716007832404,-3310.35432644,0.00012828,2]
[327351088,1716007832416,-1689.64567356,0.00012828,2]
[327351089,1716007832425,-157.37297207,0.00012933,2]
[327351090,1716007832434,-457.62510194,0.00013031,2]
[327351091,1716007832443,-362.48389235,0.00013032,2]
[327351092,1716007832452,-150.0,0.00013033,2]
[327351093,1716007832462,-150.0,0.00013033,2]
[327351094,1716007832471,-150.99,0.00013033,2]
[327351095,1716007832480,-150.0,0.00013233,2]
[327351096,1716007832490,-342.04,0.00013246,2]
[327351097,1716007832499,-499.99,0.00013246,2]
[327351098,1716007832508,-999.99,0.00013781,2]
[327351099,1716007832518,-350.97267977,0.00013783,2]
[327351100,1716007832530,-2551.66732023,0.00013783,2]
[327351101,1716007832540,-299.99,0.00013783,2]
[327351102,1716007832549,-1020.63890226,0.00013891,2]
[327351103,1716007832559,-11032.52227182,0.00013892,2]
[327351104,1716007832570,-28618.98772818,0.00013892,2]
[327351105,1716007832580,-162.65,0.00013973,2]
[327351106,1716007832590,-295.85,0.00013973,2]
[327351107,1716007832599,-2618.87740972,0.00013996,2]
[327351108,1716007832608,-618.72089771,0.00015,2]
[327351109,1716007832617,-8751.0,0.000163,2]
[327351110,1716007832626,-1226.74209097,0.000165,2]
[327351111,1716007832635,-155.0,0.00017,2]
[327351112,1716007832644,-158.68,0.00017052,2]
[327351113,1716007832654,-150.0,0.00017602,2]
[327351114,1716007832663,-250.0,0.00017927,2]
[327351115,1716007832673,-200.0,0.00017935,2]
[327351116,1716007832682,-155.0,0.00018,2]
[327351117,1716007832691,-500.0,0.00018464,2]
[327351119,1716007832700,-2780.6,0.00018507,2]
[327351120,1716007832710,-1199.71,0.00018524,2]
[327351121,1716007832720,-777.36,0.00018563,2]
[327351122,1716007832729,-209.45,0.00018652,2]
[327351123,1716007832738,-2332.21,0.0001866,2]
[327351124,1716007832747,-250.0,0.00018698,2]
[327351125,1716007832757,-188.19,0.00018851,2]
[327351126,1716007832766,-160.76,0.00018872,2]
[327351127,1716007832775,-250.0,0.00018893,2]
[327351128,1716007832784,-23900.0,0.00018893,2]
[327351129,1716007832794,-154.8,0.00018954,2]
[327351130,1716007832807,-23424.18038681,0.00019,5]
[327351131,1716007832816,-158.58,0.00019075,2]
[327351132,1716007832825,-3879.18657409,0.000192,2]
[327351133,1716007832969,-158.58,0.00019241,2]
[327351134,1716007832978,-158.58,0.00019407,2]
[327351135,1716007832987,-472.11273273,0.000195,2]
[327351136,1716007832996,-158.58,0.00019572,2]
[327351137,1716007833006,-154.8,0.00019579,2]
[327351138,1716007833015,-158.58,0.00019738,2]
[327351139,1716007833025,-158.58,0.00019904,2]
[327351140,1716007833034,-174.08834988,0.00019969,2]
[327351141,1716007833045,-155.0,0.0002,2]
[327351142,1716007833055,-627.57712,0.0002,2]
[327351143,1716007833065,-1262.30364489,0.0002,2]
[327351144,1716007833074,-155.0,0.0002,2]
[327351145,1716007833083,-861.79098037,0.0002,2]
[327351146,1716007833092,-5182.97271811,0.0002,2]
[327351147,1716007833101,-1772.44606718,0.0002,2]
[327351148,1716007833110,-6236.08966478,0.0002,2]
[327351149,1716007833119,-4895.0,0.00020009,2]
[327351150,1716007833129,-158.58,0.00020069,2]
[327351151,1716007833138,-154.8,0.00020205,2]
[327351152,1716007833147,-295.85,0.00020447,2]
[327351153,1716007833157,-154.8,0.00020831,2]
[327351154,1716007833166,-777.36,0.00020883,2]
[327351155,1716007833175,-158.68,0.00020962,2]
[327351156,1716007833185,-717.49719888,0.00021,2]
[327351157,1716007833194,-2780.6,0.00021247,2]
[327351158,1716007833204,-152.46,0.00021428,15]
[327351159,1716007833213,-154.8,0.00021456,2]
[327351160,1716007833222,-180.0,0.00021676,2]
[327351161,1716007833231,-2751.0,0.00021712,2]
[327351162,1716007833242,-168.49,0.00021754,2]
[327351163,1716007833251,-334.09,0.00021762,2]
[327351164,1716007833260,-372.65,0.00021858,2]
[327351165,1716007833269,-6767.13708574,0.000219,2]
[327351166,1716007833279,-2000.0,0.00021918,2]
[327351167,1716007833288,-238.91,0.00021918,2]
[327351168,1716007833302,-215.46,0.00021918,2]
[327351169,1716007833311,-614.77,0.0002193,2]
[327351170,1716007833321,-5520.28770876,0.00022,2]
[327351171,1716007833330,-154.8,0.00022082,2]
[327351172,1716007833339,-777.36,0.00023203,2]
[327351173,1716007833349,-1000.0,0.000233,2]
[327351174,1716007833358,-2003.50782915,0.000234,2]
[327351175,1716007833367,-6017.07508503,0.000234,2]
[327351176,1716007833384,-883.54995,0.000234,2]
[327351177,1716007833396,-846.47,0.000234,2]
[327351178,1716007833407,-350.2299999,0.000234,2]
[327351181,1716007838275,-208.57383812,0.00012824,2]
[327351182,1716007838285,-546.75884339,0.00012824,2]
[327351183,1716007838297,-219906.54896507,0.000234,2]
[327351184,1716007838308,-1038.65205609,0.000235,2]
[327351185,1716007838317,-1043.0920579,0.000235,2]
[327351186,1716007838327,-37456.48019318,0.000235,2]
[327351187,1716007838336,-500.0,0.000235,2]
[327351188,1716007838347,-445.01433264,0.000235,2]
[327351189,1716007838356,-293.88203282,0.000235,2]
[327351190,1716007838365,-2780.6,0.00023986,2]
[327351191,1716007838377,-432.75692337,0.00024,2]
[327351192,1716007838388,-158.68,0.00024872,2]
[327351193,1716007838397,-1895.685,0.0002489,2]
[327351194,1716007838406,-927.8283,0.000249,2]
[327351195,1716007838415,-9148.79926231,0.0002499,2]
[327351196,1716007838424,-645.33591283,0.00025,7]
[327351197,1716007838433,-2299.63708895,0.00025,2]
[327351198,1716007838443,-155.0,0.00025,2]
[327351199,1716007838452,-224.1230564,0.00025,2]
[327351200,1716007838461,-155.0,0.00025,2]
[327351201,1716007838470,-926.12875824,0.00025,2]
[327351202,1716007838479,-575.12287039,0.00025,14]
[327351203,1716007838488,-777.36,0.00025523,2]
[327351204,1716007838508,-167.0,0.00026331,2]
[327351205,1716007838517,-295.85,0.00026921,2]
[327351206,1716007838527,-1742.60595667,0.00027,2]
[327351207,1716007838536,-167.0,0.000272,2]
[327351208,1716007838546,-150.0,0.00027397,2]
[327351209,1716007838556,-669.59,0.00027397,10]
[327351210,1716007838565,-760.32,0.00027397,10]
[327351211,1716007838574,-633.6,0.00027397,10]
[327351212,1716007838583,-162.57,0.000274,2]
[327351213,1716007838592,-162.57,0.000274,2]
[327351214,1716007838602,-173.21,0.00027724,120]
[327351215,1716007838611,-777.36,0.00027844,2]
[327351216,1716007838620,-167.0,0.00028069,2]
[327351217,1716007838630,-150.0,0.00028118,2]
[327351218,1716007838639,-158.68,0.00028783,2]
[327351219,1716007838649,-150.0,0.00028839,2]
[327351220,1716007838658,-167.0,0.00028938,2]
[327351221,1716007838667,-225.37045452,0.0002899,2]
[327351222,1716007838676,-162.57,0.0002899,2]
[327351223,1716007838685,-162.57,0.0002899,2]
[327351224,1716007838695,-5000.0,0.00029,2]
[327351226,1716007838704,-1481.05847419,0.00029,2]
[327351228,1716007838713,-448054.68344553,0.00029,2]
[327351229,1716007838726,-21847.25615211,0.00029,2]
[327351230,1716007838748,-405.00005,0.00029,2]
[327351231,1716007838760,-597.4,0.00029,2]
[327351232,1716007838771,-323.28409323,0.00029,2]
[327351233,1716007838782,-28772.37625913,0.00029,2]
[327351234,1716007838791,-1201.99249305,0.0002916,2]
[327351235,1716007838801,-157.37297207,0.0002926,2]
[327351236,1716007838810,-183.68671614,0.0002936,2]
[327351237,1716007838819,-150.0,0.0002956,2]
[327351238,1716007838828,-167.0,0.00029807,2]
[327351239,1716007838837,-472.35883446,0.00029952,2]
[327351240,1716007838846,-764.84663079,0.00029952,2]
[327351241,1716007838855,-978.48768183,0.00029952,2]
[327351243,1716007838864,-6398.82536723,0.00029999,2]
[327351245,1716007838875,-16058.39689447,0.0003,5]
[327351247,1716007838884,-197.20765506,0.0003,2]
[327351249,1716007838893,-687.0861,0.0003,4]
[327351251,1716007838903,-19384.48887425,0.0003,4]
[327351253,1716007838912,-5684.64320039,0.0003,2]
[327351255,1716007838921,-23803.93424964,0.0003,4]
[327351257,1716007838931,-211.34838905,0.0003011,4]
[327351259,1716007838940,-150.0,0.00030281,2]
[327351261,1716007838949,-1201.99249303,0.00030284,2]
[327351263,1716007838958,-167.0,0.00030677,2]
[327351265,1716007838967,-150.0,0.00031002,2]
[327351268,1716007838976,-48983.4423,0.00031242,2]
[327351269,1716007838986,-162.57,0.00031332,2]
[327351272,1716007838995,-6175.13934263,0.00031343,4]
[327351274,1716007839004,-1201.99249303,0.00031409,2]
[327351276,1716007839014,-150.0,0.00031723,2]
[327351278,1716007839024,-1000.0,0.00031896,2]
[327351280,1716007839033,-155.0,0.00032,4]
[327351282,1716007839043,-333.25588851,0.00032,4]
[327351284,1716007839054,-157.051813,0.00032148,32]
[327351286,1716007839063,-174.08834986,0.00032435,2]
[327351287,1716007839072,-150.0,0.00032444,2]
[327351289,1716007839082,-173.051813,0.00032448,34]
[327351290,1716007839091,-1201.99249303,0.00032533,2]
[327351291,1716007839100,-158.68,0.00032693,2]
[327351292,1716007839109,-199.051813,0.00032748,34]
[327351293,1716007839122,-150.705849,0.00032827,2]
[327351294,1716007839131,-162.57,0.0003289,2]
[327351295,1716007839141,-500.0,0.000329,2]
[327351296,1716007839150,-500.0,0.000329,2]
[327351297,1716007839160,-500.0,0.000329,2]
[327351298,1716007839169,-500.0,0.000329,2]
[327351299,1716007839178,-500.0,0.000329,2]
[327351300,1716007839187,-500.0,0.000329,2]
[327351301,1716007839197,-249336.38813398,0.000329,30]
[327351302,1716007839211,-113260.32817763,0.000329,30]
[327351303,1716007839221,-169.40660434,0.000329,4]
[327351304,1716007839231,-517.89053133,0.00033,120]
[327351305,1716007839240,-173.051813,0.00033148,34]
[327351306,1716007839250,-238.91,0.00033151,120]
[327351307,1716007839260,-215.46,0.00033151,120]
[327351308,1716007839270,-150.0,0.00033165,2]
[327351309,1716007839279,-295.85,0.00033396,2]
[327351310,1716007839290,-199.051813,0.00033448,36]
[327351311,1716007839303,-528.0,0.00033647,10]
[327351312,1716007839312,-150.705849,0.00033648,2]
[327351313,1716007839322,-1201.99249303,0.00033657,2]
[327351314,1716007839332,-173.051813,0.00033748,36]
[327351315,1716007839343,-150.0,0.00033886,2]
[327351316,1716007839353,-199.051813,0.00034148,36]
[327351317,1716007839363,-1394.19379485,0.00034369,6]
[327351318,1716007839373,-173.051813,0.00034448,38]
[327351319,1716007839384,-150.705849,0.00034469,2]
[327351320,1716007839394,-150.0,0.00034548,10]
[327351321,1716007839404,-150.0,0.00034607,2]
[327351322,1716007839414,-199.051813,0.00034748,38]
[327351323,1716007839423,-1201.99249303,0.00034781,2]
[327351324,1716007839433,-150.698096,0.00034848,2]
[327351325,1716007839442,-11491.9218,0.00034898,2]
[327351326,1716007839452,-3420.2093,0.00034898,2]
[327351327,1716007839462,-2754.72333923,0.00035,4]
[327351328,1716007839471,-29311.28890874,0.00035,4]
[327351329,1716007839481,-173.051813,0.00035148,38]
[327351330,1716007839491,-1394.19379474,0.00035326,7]
[327351331,1716007839500,-150.0,0.00035328,2]
[327351332,1716007839510,-199.051813,0.00035448,40]
[327351333,1716007839520,-173.051813,0.00035748,40]
[327351334,1716007839530,-1201.99249303,0.00035906,2]
[327351335,1716007839539,-150.0,0.00036049,2]
[327351336,1716007839549,-199.051813,0.00036148,40]
[327351337,1716007839559,-1394.19379474,0.00036284,9]
[327351338,1716007839568,-173.051813,0.00036448,42]
[327351339,1716007839579,-150.698096,0.0003659,2]
[327351340,1716007839588,-158.68,0.00036603,2]
[327351341,1716007839598,-173.051813,0.00036748,42]
[327351342,1716007839608,-150.0,0.0003677,2]
[327351343,1716007839617,-1201.99249303,0.0003703,2]
[327351344,1716007839627,-173.051813,0.00037148,42]
[327351345,1716007839637,-1394.19379474,0.00037241,10]
[327351346,1716007839647,-157.051813,0.00037448,44]
[327351347,1716007839656,-150.0,0.00037491,2]
[327351348,1716007839666,-2100.0,0.00037538,7]
[327351349,1716007839675,-162.57,0.0003769,2]
[327351350,1716007839685,-2059.77144597,0.000377,4]
[327351351,1716007839694,-173.051813,0.00037748,44]
[327351352,1716007839704,-157.051813,0.00038148,44]
[327351353,1716007839713,-1201.99249303,0.00038154,2]
[327351354,1716007839723,-1394.19379474,0.00038198,11]
[327351355,1716007839732,-150.0,0.00038212,2]
[327351356,1716007839742,-173.051813,0.00038448,46]
[327351357,1716007839751,-157.051813,0.00038748,46]
[327351358,1716007839760,-158.43787398,0.000388,2]
[327351359,1716007839770,-162.57,0.0003887,2]
[327351360,1716007839780,-162.57,0.0003887,2]